Cogmind - Beta 14 @@@ ROGUE MODE // 2024.08.30 @ 13:59:15 Player: Unit6544 Result: Destroyed by G-34 Mercenary with Small Laser Performance ------------- Evolutions (0) 0 Regions Visited (1) 200 Robots Destroyed (11) 55 Value Destroyed (172) 172 Prototype IDs (2) 40 Alien Tech Used (0) 0 Bonus (0) 0 TOTAL SCORE: 467 Bonus ------- None Cogmind --------- Core Integrity 0/250 Matter 186/300 Energy 160/160 System Corruption 0% Temperature Cool (6) Movement Walking (120) Location -10/Materials Parts ------- > --- POWER (1) -------- Light Nuclear Core > --- PROPULSION (2) --- Aluminum Leg Aluminum Leg > --- UTILITY (2) ------ Improved Heat Sink > --- WEAPON (2) ------- Small Laser > --- INVENTORY (5) ---- Flight Unit Datajack Peak State ------------ > --- POWER ------------ (None) > --- PROPULSION ------- Flight Unit Flight Unit > --- UTILITY ---------- Improved Terrain Scanner Improved Terrain Scanner > --- WEAPON ----------- Small Laser Assault Rifle > --- INVENTORY -------- Grenade Launcher [Rating: 10] Favorites ----------- Power Light Nuclear Core Engine Light Ion Engine Power Core Light Nuclear Core Propulsion Wheel Leg Aluminum Leg Wheel Wheel Flight Unit Flight Unit Utility Improved Terrain Scanner Device Improved Terrain Scanner Storage Small Matter Pod Weapon Small Laser Energy Gun Small Laser Ballistic Gun Assault Rifle Launcher Grenade Launcher Special Melee Weapon Datajack Build | -11 -10 ------- Run | Yrd Mat Slots Evolved . | . . Power . | . . Propulsion . | . . Utility . | . . Weapon . | . . Parts Attached 21 | 7 14 Power 3 | 1 2 Engine 2 | 1 1 Core 1 | . 1 Reactor . | . . Propulsion 7 | 2 5 Treads . | . . Leg 3 | . 3 Wheel 2 | 2 . Hover . | . . Flight 2 | . 2 Utility 5 | 3 2 Device 4 | 2 2 Storage 1 | 1 . Processor . | . . Hackware . | . . Protection . | . . Artifact . | . . Weapon 6 | 1 5 Energy Gun 3 | 1 2 Energy Cannon . | . . Ballistic Gun 1 | . 1 Ballistic Cannon . | . . Launcher 1 | . 1 Special Weapon . | . . Impact Weapon . | . . Slashing Weapon . | . . Piercing Weapon . | . . Special Melee Weapon 1 | . 1 Unidentified Prototypes . | . . Parts Lost 8 | 2 6 Power 2 | 1 1 Propulsion 3 | . 3 Utility 2 | 1 1 Weapon 1 | . 1 Highest Loss Streak 3 | 2 3 To Critical Strikes . | . . Average Slot Usage (%) 67 | . 67 Core 4 | . 4 Leg 9 | . 9 Wheel 2 | . 2 Flight 12 | . 12 Device 11 | . 11 Energy Gun 5 | . 5 Ballistic Gun 12 | . 12 Special Melee Weapon 7 | . 7 Peak Build Rating 10 | 7 10 Average Rating 5 | 4 6 On Entrance 3 | . 7 Naked Turns . | . . Heaviest Build 9 | 5 9 Greatest Support 20 | 20 20 Greatest Overweight (x) 2 | . 2 Average Overweight (x) . | . . Largest Inventory Capacity 5 | 5 5 Average Capacity 5 | 5 5 Most Carried 5 | 5 5 Average Carried 2 | 2 2 Final Capacity 5 | 5 5 Final Carried 4 | 4 2 Class Distribution -------------------- 92% | Mutant 7% | Scavenger-Mutant Dominant Class ---------------- Mutant | -10/Materials Resources | -11 -10 ----------- Run | Yrd Mat Matter Collected 413 | 270 143 Remotely . | . . Salvage Created 301 | 134 167 Parts 26 | 14 12 Haulers Intercepted . | . . Recyclers Shooed 1 | . 1 Parts Field Recycled . | . . Retrieved Matter . | . . Parts Self-Destructed . | . . Prevented . | . . Kills | -11 -10 ------- Run | Yrd Mat Combat Hostiles Destroyed 6 | 1 5 Guns 6 | 1 5 Classes Destroyed 5 | 3 2 Worker 1 | 1 . Builder 1 | . 1 Tunneler 3 | 3 . Swarmer 3 | . 3 Grunt 3 | 1 2 Best Kill Streak 3 | 1 3 Combat Bots Only 3 | 1 3 Max Kills in Single Turn 1 | 1 1 Gunslinging . | . . Exploded . | . . Melee . | . . Uniques/NPCs Destroyed . | . . Combat | -11 -10 -------- Run | Yrd Mat Hostile Shots Fired 93 | 16 77 Missed 18 | 3 15 Damage Taken 834 | 137 697 Core 251 | 20 231 Absorbed by Shields . | . . Core Remaining (%) 92 | 92 . Volleys Fired 101 | 39 62 Largest 2 | 1 2 Hottest 60 | 40 60 Shots Fired 115 | 39 76 Gun 115 | 39 76 Cannon . | . . Launcher . | . . Special . | . . Kinetic 49 | . 49 Thermal 66 | 39 27 Explosive . | . . Electromagnetic . | . . Robot Hit Streak 6 | 5 6 Robot Miss Streak 4 | 3 4 Penetration Max . | . . Secondary Targets . | . . Shots Hit Robots 60 | 25 35 Core Hits 22 | 6 16 Critical Kills . | . . Critical Parts Destroyed . | . . Critical Strikes . | . . Melee Attacks . | . . Impact . | . . Slashing . | . . Piercing . | . . Sneak Attacks . | . . Combat Hostiles . | . . Follow-up Attacks . | . . Damage Inflicted 642 | 277 365 Guns 642 | 277 365 Cannons . | . . Explosions . | . . Melee . | . . Ramming . | . . Kinetic 254 | . 254 Thermal 388 | 277 111 Explosive . | . . Electromagnetic . | . . Impact . | . . Slashing . | . . Piercing . | . . Highest Corruption . | . . Average Corruption . | . . Corruption Purged . | . . Corruption Blocked . | . . Overload Shots . | . . Overflow Damage . | . . Projectiles . | . . Explosions . | . . Melee . | . . Knockbacks . | . . Impact . | . . Kinetic . | . . Secondary . | . . Self-Inflicted Damage . | . . Shots . | . . Rammed . | . . Targets Rammed . | . . Kicked . | . . Crushed . | . . Highest Temperature 73 | 73 15 Average Temperature 37 | 44 4 Received Heat Transfer 381 | 78 303 Siege Activations . | . . Robots Corrupted . | . . Combat Hostiles . | . . Parts Fried . | . . Impact Corruptions . | . . Robots Melted . | . . Combat Hostiles . | . . Parts Melted 2 | 2 . Heat Transferred 875 | 625 250 Parts Sabotaged . | . . Parts Stolen . | . . Parts Stripped . | . . Power Chain Reactions . | . . Alert | -11 -10 ------- Run | Yrd Mat Peak Influence 117 | 35 117 Initial 22 | . 22 Average 40 | 17 56 Maximum Alert Level . | . . Low Security (%) 100 | 100 100 Level 1 . | . . Level 2 . | . . Level 3 . | . . Level 4 . | . . Level 5 . | . . High Security . | . . Max Security . | . . Squads Dispatched 1 | . 1 Investigation . | . . Extermination . | . . Reinforcement 1 | . 1 Assault . | . . Garrison . | . . Intercept . | . . Searches Triggered . | . . Construction Impeded . | . . Haulers Reinforced . | . . Active Scanning Responses . | . . Cargo Convoy Interrupts . | . . Stealth | -11 -10 --------- Run | Yrd Mat Distress Signals . | . . Communications Jammed . | . . Distress Signals . | . . Times Spotted 17 | 1 16 Peak Tracking Total 4 | 1 4 Tactical Retreats 1 | . 1 Traps | -11 -10 ------- Run | Yrd Mat Traps Triggered . | . . Indirectly . | . . Trap Hack Attempts . | . . Triggered . | . . Disarmed . | . . Reprogrammed . | . . Reused . | . . Traps Extracted . | . . Installed . | . . Triggered . | . . Machines | -11 -10 ---------- Run | Yrd Mat Machines Disabled . | . . Max in Single Turn . | . . Machines Repaired . | . . Machines Dismantled . | . . Machines Sabotaged . | . . Overloaded Fab Kills . | . . Hacking | -11 -10 --------- Run | Yrd Mat Machines Accessed 3 | . 3 Terminals 2 | . 2 Fabricators . | . . Repair Stations . | . . Recycling Units 1 | . 1 Scanalyzers . | . . Garrison Access . | . . Total Hacks 13 | . 13 Successful 11 | . 11 Failed 2 | . 2 Catastrophic . | . . Database Lockouts . | . . Manual . | . . Terminals 9 | . 9 Fabricators . | . . Repair Stations . | . . Recycling Units 4 | . 4 Scanalyzers . | . . Garrison Access . | . . Terminal Hacks 7 | . 7 Record 2 | . 2 Prototype ID Bank 1 | . 1 Emergency Access Points 1 | . 1 Unreport Threat 1 | . 1 Transport Status 1 | . 1 Zone Layout 1 | . 1 Fabricator Hacks . | . . Repair Station Hacks . | . . Recycling Unit Hacks 4 | . 4 Recycle Component 2 | . 2 Report Inventory 1 | . 1 Retrieve Matter 1 | . 1 Scanalyzer . | . . Garrison Access Hacks . | . . Unauthorized Hacks . | . . Terminals . | . . Fabricators . | . . Repair Stations . | . . Recycling Units . | . . Scanalyzers . | . . Garrison Access . | . . Data Cores Recovered . | . . Used . | . . Hacking Detections 2 | . 2 Full Trace Events 1 | . 1 Feedback Events . | . . Feedback Blocked . | . . Robot Schematics Acquired . | . . Robots Built . | . . Authchips . | . . Time . | . . Total Robot Build Rating . | . . Part Schematics Acquired . | . . Parts Built . | . . Authchips . | . . Time . | . . Total Part Build Rating . | . . Parts Repaired . | . . Time . | . . Parts Recycled 2 | . 2 Recycled Matter . | . . Retrieved Matter . | . . Retrieved Components . | . . Parts Scanalyzed . | . . Part Schematics Acquired . | . . Parts Damaged . | . . Bothacking | -11 -10 ------------ Run | Yrd Mat Used RIF Installer . | . . Robots Hacked . | . . Non-combat . | . . Combat . | . . Robot Hacks Applied . | . . Relay Couplers Released . | . . Fabnet Peak Effective % . | . . Robots Rewired . | . . Allies Hacked . | . . Hacks Repelled . | . . Allies | -11 -10 -------- Run | Yrd Mat Total Allies . | . . Largest Group . | . . Highest-Rated Group . | . . Highest-Rated Ally . | . . Total Orders . | . . Ally Attacks . | . . Total Damage . | . . Kills . | . . Allies Corrupted . | . . Allies Melted . | . . Intel | -11 -10 ------- Run | Yrd Mat Robot Analysis Total . | . . Derelict Logs Recovered . | . . Drone Launches . | . . Drone Recoveries . | . . Exploration | -11 -10 ------------- Run | Yrd Mat Turns Passed 635 | 254 381 Spaces Moved 553 | 205 348 Core 37 | 19 18 Treads . | . . Legs 64 | . 64 Wheels 211 | 186 25 Hover . | . . Flight 241 | . 241 Fastest Speed 37 | 50 37 Average Speed 66 | 77 59 Slowest Speed 200 | 80 200 Overloaded Moves . | . . Propulsion Burnouts . | . . Robots Hopped . | . . Cave-ins Triggered . | . . Exploration Rate (%) 16 | 7 26 Regions Visited 1 Branch Regions . Pre-discovered Areas . | . . Known Exits Taken . | . . Unknown Exits Taken 1 | 1 . Scrap Searched . | . . Spaces Dug . | . . Terrain Destroyed . | . . Melee . | . . Projectile . | . . AOE . | . . Terrain Rammed . | . . Walls Destroyed . | . . Machines Disabled . | . . Actions | -11 -10 --------- Run | Yrd Mat Total 713 | 261 452 Wait 4 | . 4 Move 552 | 204 348 Hop . | . . Pick Up 23 | 11 12 Fast Attach . | . . Attach 20 | 7 13 Detach 6 | . 6 Swap 1 | . 1 Drop 6 | . 6 Fire 101 | 39 62 Melee . | . . Ram . | . . Kick . | . . Crush . | . . Escape Stasis . | . . Rewire . | . . Trap . | . . Miscellaneous . | . . Route ------- -11/Scrapyard -10/Materials (discovered 1 exit: [Mat]) History --------- Turn | Location | Event 2 | -11/Scrapyard | Met Revision 17 57 | -11/Scrapyard | Discovered new exit (range 8) 255 | -11/Scrapyard | Entered Materials 314 | -10/Materials | Build established: Mutant 326 | -10/Materials | Lost 3 parts (2n1u) 409 | -10/Materials | Core integrity fell below 50% 453 | -10/Materials | Discovered new exit (range 15) 621 | -10/Materials | Core integrity fell below 20% 636 | -10/Materials | Destroyed by G-34 Mercenary with Small Laser Last Messages --------------- Acquired Lgt. Nuclear Core. Acquired Sml. Laser. Dropped Aluminum Leg. Acquired Aluminum Leg. Different forms of propulsion may not be used simultaneously, Flight Unit automatically deactivated. Disabling or destroying stationary machines or terrain requires that a single hit meet or exceed the object's Armor value. Inspect machines by right-clicking on them, and walls via Ctrl-RMB (or as any other object in Keyboard Mode). Hovering the cursor over an object also shows its Armor in the Scan window. Assault Rifle destroyed. M-13 Machinist repairs G-47 Trooper. Critical hit (Burn: +37). K-01 Serf collects debris. [Achievement: First Step to Greatness] Map ----- +----------------------------------------------------+ | ???????????????????????????????????? | | ???????????????????#######?????????? | | ???????????????????# #?????????? | | ???????????????????# """ #?????????? | | ???????????????????# """ #?????????? | | ??????????????###### """ #?????????? | | ????###+####### # #??????#### | | ????# # ######## | | ????# + # T # | | ???##### # # "Y" # # | | ??? # ###### """ # """ + | | ??? / ############ """ # | | ???""" # ###### """ # = | | ???""" # + #= | | ???""" ###########+############## | | ??? #????# # """ """ # | | ???#+###????# """ # """ """ # | | ???# #??????# """ # """ """ + | | ???# #??????# """ # # | | ???# ######## # # | | ???# m + ############ | | ???# g# #????????####+# | | ???# g # #????????# | | ???# + "T" ########## """ | | ???#^^ ########## T # """ | | ???# k @######???# # """ | | ??# u #???# # | | ??# #???# """# """ | | ??# #???# """# """ | | ??# ####???# """# """ | | ??# ########??????# """# | | ??# #???#####?????# """###### | | ??# ##??#"""#?????# #????? | | ?? #?##"Y"###########+####??#?? | | ?# #?# #####?? | | ?# #?# < ?? | | ?# #?# ?? | | ??? #?########## ## ?? | | ??? #??????????# ## #####?? | | ???????????????????????????????????? | | ???????????????????????????????????? | | ???????????????????????????????????? | | ???????????????????????????????????? | | ???????????????????????????????????? | | ???????????????????????????????????? | | ???????????????????????????????????? | | ???????????????????????????????????? | | ???????????????????????????????????? | | ???????????????????????????????????? | | ???????????????????????????????????? | +----------------------------------------------------+ Best States ------------- Heat Dissipation 39 Energy Generation 14 Energy Capacity 160 Matter Stores 330 Matter Capacity 350 Sight Range 16 Terrain Scan Range 16 Terrain Scan Density 10 Evasion (%) 62 Item Schematics ----------------- None Robot Schematics ------------------ None Fabricated ------------ Nothing Alien Tech Used ----------------- None Achievements -------------- Everything Is Under Control First Step to Greatness Uninvited Guest Challenges ------------ None Game ------ Seed ParticleGatlingSpoofer Manual? 0 Play Time 00:24:36 Cumulative 0.3 hours Start 2024.08.30 @ 13:32:36 End 2024.08.30 @ 13:59:15 Sessions 1 Manual Loads 0 Difficulty Rogue Special Mode None Game No. 1 Rogue 1 Adventurer 0 Explorer 0 Win Type - Total 0 Types 0/0/0/0/0/0/0/0/0 Lore% 0 Gallery% 1 Achievement% 1 Wizard Run 0 Options --------- Layout 1 ASCII 0 Keyboard 0 Movement Mouse Keybinds 0 Fullscreen 1 Font 24/Smallcaps Map View 50x40 Zoom Use 0% Tactical HUD 0 Map Filters NONE Filters NONE Steam 1 RUN: 181bdfdf-124f-48bd-b709-b123b631a86c